bitfinex-derivatives/quotes_BTCF0:USTF0_20250322
["timestamp","ask_amount","ask_price","bid_price","bid_amount"]
[1742673889171,0.26933193,84242.0,84241.0,0.00017801]
[1742673890083,0.27133193,84242.0,84241.0,0.00017801]
[1742673892180,0.27333193,84242.0,84241.0,0.00017801]
[1742673912210,0.38573193,84242.0,84241.0,0.00017801]
[1742673922729,0.1187481,84227.0,84214.0,0.19091473]
[1742673923020,0.2319481,84227.0,84226.0,0.21453897]
[1742673923216,0.2641481,84227.0,84226.0,0.21453897]
[1742673923618,0.38287557,84227.0,84226.0,0.21453897]
[1742673924321,0.38287557,84227.0,84226.0,0.00084]
[1742673924522,0.38287557,84227.0,84224.0,0.0303]
[1742673924523,0.1187509,84225.0,84224.0,0.0303]
[1742673924708,0.1187509,84225.0,84224.0,0.03114]
[1742673924709,0.1195909,84225.0,84224.0,0.03114]
[1742673925322,0.23832119,84225.0,84224.0,0.03114]
[1742673925715,0.24839336,84225.0,84224.0,0.09584]
[1742673925920,0.23932119,84225.0,84224.0,0.09584]
[1742673928119,0.25228948,84225.0,84224.0,0.09584]
[1742673930333,0.26125491,84225.0,84224.0,0.09584]
[1742673934733,0.25228948,84225.0,84224.0,0.09584]
[1742673935640,0.28508948,84225.0,84224.0,0.09584]
[1742673938933,0.31648948,84225.0,84224.0,0.09584]
[1742673939524,0.31648948,84225.0,84224.0,0.06554]
[1742673950539,0.31648948,84225.0,84224.0,0.0647]
[1742673952830,0.31648948,84225.0,84224.0,0.0655]
[1742673953035,0.31648948,84225.0,84224.0,0.0647]
[1742673956644,0.42880948,84225.0,84224.0,0.0647]
[1742673958943,0.42880948,84225.0,84224.0,0.0331]
[1742673973655,0.42880948,84225.0,84224.0,0.0648]
[1742674015989,0.42880948,84225.0,84224.0,0.0981]
[1742674018492,0.42880948,84225.0,84224.0,0.09898]
[1742674018692,0.42880948,84225.0,84224.0,0.0981]
[1742674021093,0.42880948,84225.0,84224.0,0.0648]
[1742674033696,0.42876948,84225.0,84224.0,0.0648]
[1742674033888,0.13353858,84225.0,84224.0,0.1844323]
[1742674034088,0.0087175,84232.0,84231.0,0.1187425]
[1742674034288,0.0087175,84232.0,84231.0,0.1195425]
[1742674034696,0.0095575,84232.0,84231.0,0.1844425]
[1742674034895,0.23830143,84232.0,84231.0,0.1844425]
[1742674035097,0.23830143,84232.0,84231.0,0.0657]
[1742674035399,0.24030143,84232.0,84231.0,0.1844425]
[1742674035593,0.24230143,84232.0,84231.0,0.1844425]
[1742674035793,0.27280143,84232.0,84231.0,0.1844425]
[1742674036199,0.27080143,84232.0,84231.0,0.1854425]
[1742674036799,0.26880143,84232.0,84231.0,0.1884425]
[1742674037100,0.23830143,84232.0,84231.0,0.1884425]
[1742674037704,0.23830143,84232.0,84231.0,0.1874425]
[1742674038001,0.23830143,84232.0,84231.0,0.1884425]
[1742674038408,0.23830143,84232.0,84231.0,0.1854425]
[1742674038608,0.23830143,84232.0,84231.0,0.1874425]
[1742674039103,0.26920143,84232.0,84231.0,0.1874425]
[1742674043310,0.26920143,84232.0,84231.0,0.0687]
[1742674043506,0.26920143,84232.0,84231.0,0.1874425]
[1742674047912,0.26920143,84232.0,84231.0,0.0687]
[1742674048313,0.26920143,84232.0,84231.0,0.1874425]
[1742674049105,0.26920143,84232.0,84231.0,0.1854425]
[1742674049310,0.26920143,84232.0,84231.0,0.1864425]
[1742674049510,0.26920143,84232.0,84231.0,0.1854425]
[1742674049707,0.30220143,84232.0,84231.0,0.1854425]
[1742674049911,0.30220143,84232.0,84231.0,0.1844425]
[1742674050117,0.30220143,84232.0,84231.0,0.1854425]
[1742674051207,0.30320143,84232.0,84231.0,0.1854425]
[1742674053110,0.30320143,84232.0,84231.0,0.0667]
[1742674054116,0.30320143,84232.0,84231.0,0.1854425]
[1742674056417,0.30320143,84232.0,84231.0,0.0667]
[1742674057810,0.30320143,84232.0,84231.0,0.0349]
[1742674058220,0.30320143,84232.0,84231.0,0.1536425]
[1742674058716,0.30320143,84232.0,84231.0,0.1849425]
[1742674059421,0.30320143,84232.0,84231.0,0.1839425]
[1742674065912,0.30320143,84232.0,84231.0,0.0652]
[1742674067018,0.30320143,84232.0,84231.0,0.1839425]
[1742674071518,0.30320143,84232.0,84231.0,0.0652]
[1742674072927,0.30320143,84232.0,84231.0,0.1839425]
[1742674080446,0.30320143,84232.0,84231.0,0.19660742]
[1742674080624,0.30320143,84232.0,84231.0,0.1839425]
[1742674084738,0.30220143,84232.0,84231.0,0.5447425]
[1742674086329,0.30220143,84232.0,84231.0,0.55714872]
[1742674086529,0.30220143,84232.0,84231.0,0.19634872]
[1742674086835,0.30220143,84232.0,84231.0,0.55714872]
[1742674090543,0.30220143,84232.0,84231.0,0.5447425]
[1742674091041,0.30220143,84232.0,84231.0,0.1839425]
[1742674091249,0.30220143,84232.0,84231.0,0.5447425]
[1742674093550,0.30220143,84232.0,84231.0,0.55712866]
[1742674093847,0.30220143,84232.0,84231.0,0.5447425]
[1742674094352,0.18346043,84232.0,84231.0,0.5447425]
[1742674094740,0.30220143,84232.0,84231.0,0.5447425]
[1742674098050,0.30220143,84232.0,84231.0,0.5457425]
[1742674098653,0.30220143,84232.0,84231.0,0.5447425]
[1742674098850,0.30320143,84232.0,84231.0,0.5447425]
[1742674099555,0.30320143,84232.0,84231.0,0.55974433]
[1742674102852,0.30320143,84232.0,84231.0,0.5447425]
[1742674106655,0.30320143,84232.0,84231.0,0.55977666]
[1742674107356,0.30320143,84232.0,84231.0,0.19897666]
[1742674107660,0.30320143,84232.0,84231.0,0.55977666]
[1742674108452,0.30320143,84232.0,84231.0,0.5447425]
[1742674111050,0.30320143,84232.0,84231.0,0.55981362]
[1742674111259,0.30320143,84232.0,84231.0,0.19901362]
[1742674111456,0.30320143,84232.0,84231.0,0.55981362]
[1742674112862,0.30320143,84232.0,84231.0,0.19901362]
[1742674113064,0.30320143,84232.0,84231.0,0.5447425]
[1742674124861,0.30320143,84232.0,84231.0,0.1839425]
[1742674125058,0.30320143,84232.0,84231.0,0.5447425]
[1742674126174,0.30320143,84232.0,84231.0,0.5598362]
[1742674127369,0.30320143,84232.0,84231.0,0.3766937]
[1742674127571,0.30320143,84232.0,84231.0,0.0158937]
[1742674130465,0.18446043,84232.0,84231.0,0.1346362]
[1742674130679,0.18446043,84232.0,84231.0,0.5580362]
[1742674130884,0.18446043,84232.0,84231.0,0.61543537]
[1742674131173,0.18362043,84232.0,84231.0,0.61543537]
[1742674131566,0.18442043,84232.0,84231.0,0.61543537]
[1742674131766,0.18450043,84232.0,84231.0,0.61543537]
[1742674132168,0.18450043,84232.0,84231.0,0.5902362]
[1742674133268,0.30324143,84232.0,84231.0,0.5902362]
[1742674133970,0.30324143,84232.0,84231.0,0.5751425]
[1742674136578,0.18450043,84232.0,84231.0,0.5751425]
[1742674139683,0.18450043,84232.0,84231.0,0.86007446]
[1742674140971,0.30324143,84232.0,84231.0,0.86007446]
[1742674141487,0.18450043,84232.0,84231.0,0.86007446]
[1742674141786,0.18362043,84232.0,84231.0,0.86007446]
[1742674141980,0.18450043,84232.0,84231.0,0.86007446]
[1742674142290,0.18362043,84232.0,84231.0,0.87509102]
[1742674142480,0.18450043,84232.0,84231.0,0.87509102]
[1742674143084,0.18450043,84232.0,84231.0,0.86007446]
[1742674145684,0.30324143,84232.0,84231.0,0.86007446]
[1742674145882,0.30324143,84232.0,84231.0,0.5751425]
[1742674147386,0.18450043,84232.0,84231.0,0.5751425]
[1742674147683,0.30236143,84232.0,84231.0,0.5751425]
[1742674147884,0.30324143,84232.0,84231.0,0.5751425]
[1742674148185,0.30324143,84232.0,84231.0,0.5429425]
[1742674148585,0.30324143,84232.0,84231.0,0.5117425]
[1742674150878,0.30324143,84232.0,84231.0,0.5447425]
[1742674152278,0.30324143,84232.0,84231.0,0.5117425]
[1742674154187,0.30324143,84232.0,84231.0,0.1509425]
[1742674155989,0.30324143,84232.0,84231.0,0.0322]
[1742674156188,0.30324143,84232.0,84231.0,0.1509425]
[1742674158687,0.30324143,84232.0,84231.0,0.0322]
[1742674158890,0.30324143,84232.0,84231.0,0.0008]
[1742674159390,0.66404143,84232.0,84231.0,0.0008]
[1742674161487,0.66404143,84232.0,84226.0,0.28493196]
[1742674161488,0.1187481,84227.0,84226.0,0.28493196]
[1742674161686,0.1187481,84227.0,84221.0,0.19089923]
[1742674161687,0.1187523,84224.0,84221.0,0.19089923]
[1742674162091,0.1187523,84224.0,84223.0,0.00115493]
[1742674162289,0.23807978,84224.0,84223.0,0.00115493]
[1742674162489,0.23747977,84224.0,84223.0,0.00047493]
[1742674163192,0.24977158,84224.0,84223.0,0.00047493]
[1742674163996,0.24977158,84224.0,84223.0,0.00147493]
[1742674164191,0.25077158,84224.0,84223.0,0.00147493]
[1742674164392,0.25177158,84224.0,84223.0,0.00047493]
[1742674167494,0.25237159,84224.0,84223.0,0.00107493]
[1742674174701,0.31837159,84224.0,84223.0,0.00107493]
[1742674183721,0.31837159,84224.0,84223.0,0.03287493]
[1742674184718,0.31837159,84224.0,84223.0,0.06557493]
[1742674192424,0.31837159,84224.0,84223.0,0.06497493]
[1742674192933,0.31837159,84224.0,84223.0,0.06557493]
[1742674193723,0.31837159,84224.0,84223.0,0.06497493]
[1742674194023,0.31837159,84224.0,84223.0,0.06565493]
[1742674194222,0.31837159,84224.0,84223.0,0.06497493]
[1742674194418,0.31837159,84224.0,84223.0,0.06557493]
[1742674196627,0.31837159,84224.0,84223.0,0.06497493]
[1742674196927,0.31837159,84224.0,84223.0,0.06565493]
[1742674199835,0.31837159,84224.0,84223.0,0.06497493]
[1742674200034,0.31837159,84224.0,84223.0,0.06565493]
[1742674200435,0.31837159,84224.0,84223.0,0.06497493]
[1742674200741,0.31837159,84224.0,84223.0,0.06561493]
[1742674201040,0.31837159,84224.0,84223.0,0.06557493]
[1742674204643,0.31837159,84224.0,84223.0,0.06497493]
[1742674204941,0.31837159,84224.0,84223.0,0.06557493]
[1742674206037,0.31837159,84224.0,84223.0,0.06497493]
[1742674206437,0.31837159,84224.0,84223.0,0.06557493]
[1742674206839,0.31837159,84224.0,84223.0,0.06497493]
[1742674207136,0.31837159,84224.0,84223.0,0.06565493]
[1742674208339,0.31837159,84224.0,84223.0,0.06497493]
[1742674208538,0.31837159,84224.0,84223.0,0.06565493]
[1742674213546,0.31837159,84224.0,84223.0,0.06497493]
[1742674214149,0.31837159,84224.0,84223.0,0.06561493]
[1742674214551,0.31837159,84224.0,84223.0,0.06497493]
[1742674215053,0.31837159,84224.0,84223.0,0.06557493]
[1742674215742,0.31837159,84224.0,84223.0,0.06497493]
[1742674216443,0.31837159,84224.0,84223.0,0.06565493]
[1742674216643,0.31837159,84224.0,84223.0,0.06497493]
[1742674216945,0.31837159,84224.0,84223.0,0.06557493]
[1742674217355,0.31837159,84224.0,84223.0,0.06497493]
[1742674218147,0.31837159,84224.0,84223.0,0.06565493]
[1742674218947,0.31837159,84224.0,84223.0,0.06497493]
[1742674219150,0.31837159,84224.0,84223.0,0.06557493]
[1742674223462,0.31837159,84224.0,84223.0,0.06497493]
[1742674223853,0.31837159,84224.0,84223.0,0.06557493]
[1742674225858,0.31837159,84224.0,84223.0,0.06497493]
[1742674226051,0.31837159,84224.0,84223.0,0.06561493]
[1742674226853,0.31837159,84224.0,84223.0,0.06497493]
[1742674227555,0.31837159,84224.0,84223.0,0.06565493]
[1742674228863,0.31837159,84224.0,84223.0,0.06497493]
[1742674229068,0.31837159,84224.0,84223.0,0.06557493]
[1742674232065,0.31837159,84224.0,84223.0,0.06497493]
[1742674232467,0.31837159,84224.0,84223.0,0.06557493]
[1742674234364,0.31837159,84224.0,84223.0,0.06497493]
[1742674235163,0.31837159,84224.0,84223.0,0.06557493]
[1742674236668,0.31837159,84224.0,84223.0,0.06497493]
[1742674236862,0.31837159,84224.0,84223.0,0.06557493]
[1742674237264,0.31837159,84224.0,84223.0,0.06497493]
[1742674237459,0.31837159,84224.0,84223.0,0.06561493]
[1742674239176,0.31837159,84224.0,84223.0,0.06497493]
[1742674239363,0.31837159,84224.0,84223.0,0.06557493]
[1742674240467,0.31837159,84224.0,84223.0,0.18432863]
[1742674240663,0.31837159,84224.0,84223.0,0.06557493]
[1742674240869,0.31837159,84224.0,84223.0,0.06497493]
[1742674241173,0.43093159,84224.0,84223.0,0.06557493]
[1742674241777,0.43093159,84224.0,84223.0,0.06497493]
[1742674241975,0.43093159,84224.0,84223.0,0.06557493]
[1742674252971,0.43093159,84224.0,84223.0,0.08077113]
[1742674254579,0.43093159,84224.0,84223.0,0.06557493]
[1742674256571,0.43093159,84224.0,84223.0,0.08017586]
[1742674256779,0.43093159,84224.0,84223.0,0.08077586]
[1742674257176,0.43093159,84224.0,84223.0,0.06557493]
[1742674262281,0.43093159,84224.0,84223.0,0.00107493]
[1742674262480,0.43093159,84224.0,84223.0,0.00047493]
[1742674262687,0.43093159,84224.0,84218.0,0.00017801]
[1742674262688,0.0593779,84222.0,84218.0,0.00017801]
[1742674262983,0.1187594,84219.0,84218.0,0.00077801]
[1742674263282,0.11935941,84219.0,84218.0,0.00077801]
[1742674264082,0.30069605,84219.0,84218.0,0.00077801]
[1742674265281,0.30069605,84219.0,84218.0,0.00017801]
[1742674265889,0.18193665,84219.0,84218.0,0.11893881]
[1742674266181,0.18193665,84219.0,84218.0,0.15193881]
[1742674266382,0.18193665,84219.0,84218.0,0.18193881]
[1742674267384,0.11933665,84219.0,84218.0,0.18193881]
[1742674267575,0.11873664,84219.0,84218.0,0.19740097]
[1742674267789,0.0616,84226.0,84225.0,0.1187509]
[1742674267983,0.0616,84226.0,84225.0,0.1193509]
[1742674268183,0.06220001,84226.0,84225.0,0.1193509]
[1742674268378,0.00060001,84226.0,84225.0,0.4801509]
[1742674268578,0.0316,84239.0,84234.0,0.1187382]
[1742674268787,0.00097801,84235.0,84234.0,0.1194982]
[1742674269886,0.00297801,84235.0,84234.0,0.1822982]
[1742674270785,0.00217801,84235.0,84234.0,0.5430982]
[1742674270979,0.00289801,84235.0,84234.0,0.5430982]
[1742674271475,0.00317801,84235.0,84234.0,0.5430982]
[1742674274592,0.0316,84239.0,84238.0,0.1187326]
[1742674274792,0.0316,84239.0,84238.0,0.1194526]
[1742674275284,0.1510362,84239.0,84238.0,0.1194526]
[1742674275483,0.1510362,84239.0,84238.0,0.1502526]
[1742674275686,0.1530362,84239.0,84238.0,0.1502526]
[1742674276078,0.1540362,84239.0,84238.0,0.1502526]
[1742674281387,0.1187088,84255.0,84246.0,0.1187213]
[1742674281592,0.03203802,84247.0,84246.0,0.1197613]
[1742674281801,0.06443802,84247.0,84246.0,0.1197613]
[1742674282297,0.03353802,84247.0,84246.0,0.1520613]
[1742674282493,0.00113802,84247.0,84246.0,0.1520613]
[1742674282689,0.00017801,84247.0,84246.0,0.1520613]
[1742674284386,0.00017801,84247.0,84246.0,0.5128613]
[1742674284699,0.00017801,84247.0,84246.0,0.6286613]
[1742674285493,0.00017801,84247.0,84246.0,0.63767585]
[1742674287680,0.00113802,84247.0,84246.0,0.63767585]
[1742674288100,0.06293802,84247.0,84246.0,0.63767585]
[1742674289699,0.06197801,84247.0,84246.0,0.6286613]
[1742674289896,0.09307801,84247.0,84246.0,0.6286613]
[1742674290194,0.09403802,84247.0,84246.0,0.6286613]
[1742674291489,0.09307801,84247.0,84246.0,0.6286613]
[1742674291896,0.09367802,84247.0,84246.0,0.6286613]
[1742674292295,0.09307801,84247.0,84246.0,0.6286613]
[1742674292496,0.09403802,84247.0,84246.0,0.6286613]
[1742674292702,0.09307801,84247.0,84246.0,0.6286613]
[1742674293000,0.09403802,84247.0,84246.0,0.6286613]
[1742674300509,0.09403802,84247.0,84246.0,0.63749027]
[1742674301111,0.09307801,84247.0,84246.0,0.67049027]
[1742674302010,0.09403802,84247.0,84246.0,0.67049027]
[1742674303215,0.09307801,84247.0,84246.0,0.67049027]
[1742674304021,0.09411802,84247.0,84246.0,0.67049027]
[1742674304320,0.09411802,84247.0,84246.0,0.63749027]
[1742674305526,0.09307801,84247.0,84246.0,0.63749027]
[1742674305931,0.09407801,84247.0,84246.0,0.63749027]
[1742674306131,0.09307801,84247.0,84246.0,0.63749027]
[1742674306427,0.09403802,84247.0,84246.0,0.52169027]
[1742674307025,0.09307801,84247.0,84246.0,0.52169027]
[1742674307229,0.09403802,84247.0,84246.0,0.52169027]
[1742674307422,0.09307801,84247.0,84246.0,0.52169027]
[1742674307623,0.10501835,84247.0,84246.0,0.52169027]
[1742674307925,0.10597836,84247.0,84246.0,0.52169027]
[1742674308526,0.10501835,84247.0,84246.0,0.52169027]
[1742674308727,0.10597836,84247.0,84246.0,0.52169027]
[1742674310138,0.09403802,84247.0,84246.0,0.52169027]
[1742674310332,0.09307801,84247.0,84246.0,0.55479027]
[1742674310729,0.09307801,84247.0,84246.0,0.19399027]
[1742674310930,0.09411802,84247.0,84246.0,0.19399027]
[1742674311536,0.09411802,84247.0,84246.0,0.47892223]
[1742674311731,0.09307801,84247.0,84246.0,0.47892223]
[1742674311924,0.09411802,84247.0,84246.0,0.47892223]
[1742674313927,0.09411802,84247.0,84246.0,0.19399027]
[1742674314132,0.09307801,84247.0,84246.0,0.19399027]
[1742674314747,0.09403802,84247.0,84246.0,0.19399027]
[1742674315042,0.09307801,84247.0,84246.0,0.19399027]
[1742674317937,0.09407801,84247.0,84246.0,0.19399027]
[1742674318145,0.09307801,84247.0,84246.0,0.19399027]
[1742674318541,0.09411802,84247.0,84246.0,0.19399027]
[1742674318847,0.09411802,84247.0,84246.0,0.4227083]
[1742674319638,0.09411802,84247.0,84246.0,0.40773255]
[1742674320735,0.09307801,84247.0,84246.0,0.40773255]
[1742674321135,0.09407801,84247.0,84246.0,0.40773255]
[1742674321338,0.09407801,84247.0,84246.0,0.4226876]
[1742674321534,0.09407801,84247.0,84246.0,0.20894532]
[1742674321936,0.09307801,84247.0,84246.0,0.20894532]
[1742674322739,0.09411802,84247.0,84246.0,0.20894532]
[1742674325839,0.09411802,84247.0,84246.0,0.19399027]
[1742674326238,0.09307801,84247.0,84246.0,0.19399027]
[1742674327641,0.09307801,84247.0,84246.0,0.20895608]
[1742674327849,0.11512,84263.0,84256.0,0.1187072]
[1742674328054,0.36176001,84257.0,84256.0,0.1197472]
[1742674328343,0.48046581,84257.0,84256.0,0.1197472]
[1742674328643,0.59915101,84257.0,84256.0,0.1821472]
[1742674329440,0.23835101,84257.0,84256.0,0.1821472]
[1742674330249,0.23835101,84257.0,84256.0,0.19749948]
[1742674330546,0.25020582,84257.0,84256.0,0.19749948]
[1742674330950,0.19770002,84257.0,84256.0,0.19749948]
[1742674331556,0.19770002,84257.0,84256.0,0.4111929]
[1742674331947,0.31640582,84257.0,84256.0,0.4111929]
[1742674332341,0.31640582,84257.0,84256.0,0.39584062]
[1742674333642,0.31640582,84257.0,84256.0,0.1821472]
[1742674336234,0.18584521,84257.0,84256.0,0.1821472]
[1742674337335,0.30455101,84257.0,84256.0,0.1821472]
[1742674340945,0.18584521,84257.0,84256.0,0.1821472]
[1742674341146,0.30455101,84257.0,84256.0,0.1821472]
[1742674341749,0.30455101,84257.0,84256.0,0.19752811]
[1742674342454,0.18584521,84257.0,84256.0,0.19752811]
[1742674343138,0.30455101,84257.0,84256.0,0.19752811]
[1742674344157,0.18584521,84257.0,84256.0,0.1821472]
[1742674344445,0.30455101,84257.0,84256.0,0.1821472]
[1742674345055,0.30455101,84257.0,84256.0,0.19749199]
[1742674345852,0.18584521,84257.0,84256.0,0.19749199]
[1742674346558,0.30455101,84257.0,84256.0,0.19749199]
[1742674351562,0.30455101,84257.0,84256.0,0.07878479]
[1742674351749,0.30455101,84257.0,84256.0,0.06344]
[1742674352548,0.30455101,84257.0,84256.0,0.1821472]
[1742674353660,0.30455101,84257.0,84256.0,0.03214]
[1742674357454,0.30455101,84257.0,84256.0,0.06334]
[1742674357961,0.30455101,84257.0,84256.0,0.03214]
[1742674358157,0.30455101,84257.0,84256.0,0.06334]
[1742674360154,0.30455101,84257.0,84256.0,0.03214]
[1742674360768,0.30455101,84257.0,84256.0,0.06324]
[1742674365762,0.18584521,84257.0,84256.0,0.1819472]
[1742674365963,0.30455101,84257.0,84256.0,0.06324]
[1742674366271,0.30455101,84257.0,84256.0,0.07875515]
[1742674367073,0.30455101,84257.0,84256.0,0.06324]
[1742674367659,0.18584521,84257.0,84256.0,0.1819472]
[1742674367869,0.1848852,84257.0,84256.0,0.2122472]
[1742674368077,0.18584521,84257.0,84256.0,0.42581739]
[1742674368269,0.18548521,84257.0,84256.0,0.42581739]
[1742674368463,0.18548521,84257.0,84256.0,0.44138216]
[1742674369079,0.1848852,84257.0,84256.0,0.42581739]
[1742674369275,0.18592521,84257.0,84256.0,0.42581739]
[1742674369868,0.30463101,84257.0,84256.0,0.42581739]
[1742674370070,0.30463101,84257.0,84256.0,0.39551739]
[1742674370472,0.30463101,84257.0,84256.0,0.1819472]
[1742674373174,0.18592521,84257.0,84256.0,0.1819472]
[1742674375678,0.18592521,84257.0,84256.0,0.46661295]
[1742674376769,0.18592521,84257.0,84256.0,0.82741295]
[1742674378077,0.30463101,84257.0,84256.0,0.82741295]
[1742674378280,0.30463101,84257.0,84256.0,0.5427472]
[1742674388080,0.30463101,84257.0,84256.0,0.42404]
[1742674388481,0.30463101,84257.0,84256.0,0.5427472]
[1742674391492,0.30463101,84257.0,84256.0,0.42404]
[1742674392093,0.30463101,84257.0,84256.0,0.5427472]
[1742674394696,0.30463101,84257.0,84256.0,0.42404]
[1742674396101,0.30463101,84257.0,84256.0,0.5427472]
[1742674397604,0.30463101,84257.0,84256.0,0.06324]
[1742674397898,0.30463101,84257.0,84256.0,0.1819472]
[1742674398093,0.30463101,84257.0,84256.0,0.06324]
[1742674398700,0.30463101,84257.0,84256.0,0.1819472]
[1742674398900,0.30463101,84257.0,84256.0,0.06324]
[1742674409801,0.30463101,84257.0,84256.0,0.1819472]
[1742674410201,0.30463101,84257.0,84256.0,0.06324]
[1742674415004,0.30463101,84257.0,84256.0,0.0622]
[1742674415205,0.30463101,84257.0,84256.0,0.06316]
[1742674417211,0.30463101,84257.0,84256.0,0.1818672]
[1742674420805,0.30463101,84257.0,84256.0,0.39550399]
[1742674423414,0.18592521,84257.0,84256.0,0.39550399]
[1742674423620,0.18592521,84257.0,84256.0,0.1818672]
[1742674424916,0.30463101,84257.0,84256.0,0.1818672]
[1742674428718,0.30463101,84257.0,84256.0,0.39555166]
[1742674430919,0.30463101,84257.0,84256.0,0.27684446]
[1742674431216,0.30463101,84257.0,84256.0,0.39555166]
[1742674431615,0.30463101,84257.0,84256.0,0.06316]
[1742674433028,0.30463101,84257.0,84256.0,0.1818672]
[1742674433225,0.30463101,84257.0,84256.0,0.06316]
[1742674434129,0.30463101,84257.0,84256.0,0.1818672]
[1742674446031,0.30463101,84257.0,84256.0,0.06316]
[1742674446430,0.30463101,84257.0,84256.0,0.1818672]
[1742674450835,0.30463101,84257.0,84256.0,0.06316]
[1742674451536,0.30463101,84257.0,84256.0,0.1818672]
[1742674452829,0.30463101,84257.0,84256.0,0.06316]
[1742674454145,0.30463101,84257.0,84256.0,0.1818672]
[1742674454845,0.30463101,84257.0,84256.0,0.06316]
[1742674455233,0.30463101,84257.0,84256.0,0.1818672]
[1742674456137,0.30463101,84257.0,84256.0,0.06316]
[1742674456736,0.30463101,84257.0,84256.0,0.1818672]
[1742674457654,0.30463101,84257.0,84256.0,0.06316]
[1742674460148,0.30463101,84257.0,84256.0,0.1818672]
[1742674464443,0.30463101,84257.0,84256.0,0.06316]
[1742674465236,0.30463101,84257.0,84256.0,0.1818672]
[1742674467339,0.18592521,84257.0,84256.0,0.1818672]
[1742674467545,0.30463101,84257.0,84256.0,0.1818672]
[1742674468050,0.18592521,84257.0,84256.0,0.1818672]
[1742674468556,0.30463101,84257.0,84256.0,0.1818672]
[1742674472250,0.30463101,84257.0,84256.0,0.5426672]
[1742674473251,0.30463101,84257.0,84256.0,0.42396]
[1742674473955,0.30463101,84257.0,84256.0,0.5426672]
[1742674476952,0.30463101,84257.0,84256.0,0.1818672]
[1742674477152,0.30463101,84257.0,84256.0,0.5426672]
[1742674482059,0.18592521,84257.0,84256.0,0.5426672]
[1742674482472,0.1848852,84257.0,84256.0,0.5426672]
[1742674483758,0.303591,84257.0,84256.0,0.5426672]
[1742674484058,0.30463101,84257.0,84256.0,0.5426672]
[1742674486872,0.30463101,84257.0,84256.0,0.1818672]
[1742674490462,0.18592521,84257.0,84256.0,0.1818672]
[1742674490761,0.1848852,84257.0,84256.0,0.1818672]
[1742674490964,0.303591,84257.0,84256.0,0.1818672]
[1742674491163,0.30455101,84257.0,84256.0,0.1818672]
[1742674492768,0.18584521,84257.0,84256.0,0.1818672]
[1742674492967,0.1849058,84257.0,84256.0,0.1818672]
[1742674493168,0.0672,84257.0,84256.0,0.19687315]
[1742674493365,0.0662,84257.0,84256.0,0.19687315]
[1742674493874,0.0662,84257.0,84256.0,0.19687348]
[1742674494275,0.1849058,84257.0,84256.0,0.19687348]
[1742674494465,0.0662,84257.0,84256.0,0.19687348]
[1742674495479,0.0662,84257.0,84256.0,0.1818672]
[1742674498478,0.1849058,84257.0,84256.0,0.1818672]
[1742674498673,0.18586581,84257.0,84256.0,0.1818672]
[1742674502781,0.06716001,84257.0,84256.0,0.1818672]
[1742674502981,0.0662,84257.0,84256.0,0.1818672]
[1742674503374,0.1849058,84257.0,84256.0,0.06316]
[1742674503574,0.18586581,84257.0,84256.0,0.1818672]
[1742674504576,0.30455101,84257.0,84256.0,0.00096]
[1742674505179,0.30455101,84257.0,84256.0,0.1196672]
[1742674505787,0.30455101,84257.0,84256.0,0.1827672]
[1742674510171,0.30455101,84257.0,84256.0,0.00096]
[1742674510386,0.30455101,84257.0,84256.0,0.1196672]
[1742674510788,0.30455101,84257.0,84256.0,0.03116]
[1742674512284,0.30455101,84257.0,84256.0,0.00096]
[1742674514378,0.30455101,84257.0,84251.0,0.3926]
[1742674514379,0.1187129,84252.0,84251.0,0.28466575]
[1742674514582,0.1187185,84248.0,84247.0,0.4167]
[1742674514884,0.4801985,84248.0,84247.0,0.4173]
[1742674515087,0.5988837,84248.0,84247.0,0.4173]
[1742674515594,0.6629837,84248.0,84247.0,0.4173]
[1742674515892,0.6629837,84248.0,84247.0,0.0006]
[1742674516092,0.6629837,84248.0,84247.0,0.0016]
[1742674516790,0.6629837,84248.0,84247.0,0.0036]
[1742674517180,0.6629837,84248.0,84247.0,0.0026]
[1742674517596,0.6629837,84248.0,84247.0,0.0006]
[1742674527601,0.6629837,84248.0,84246.0,8e-05]
[1742674527602,0.1187199,84247.0,84246.0,8e-05]
[1742674527797,0.1193999,84247.0,84246.0,8e-05]
[1742674528098,0.1822999,84247.0,84246.0,8e-05]
[1742674528300,0.30099919,84247.0,84246.0,8e-05]
[1742674528692,0.30099919,84247.0,84246.0,0.03048]
[1742674529396,0.30099919,84247.0,84246.0,0.03108]
[1742674529596,0.30099919,84247.0,84246.0,0.03048]
[1742674531508,0.30099919,84247.0,84246.0,0.03108]
[1742674531695,0.30099919,84247.0,84246.0,0.03048]
[1742674541717,0.30099919,84247.0,84246.0,0.03108]
[1742674542007,0.30099919,84247.0,84246.0,0.03048]
[1742674552111,0.30099919,84247.0,84238.0,0.00025801]
[1742674552112,0.1187312,84239.0,84238.0,0.00025801]
[1742674552313,0.5945312,84239.0,84238.0,0.00025801]
[1742674552616,0.5945312,84239.0,84238.0,0.00085801]
[1742674552817,0.74503049,84239.0,84238.0,0.00017801]
[1742674553401,0.77643049,84239.0,84238.0,0.00017801]
[1742674553817,0.77643049,84239.0,84238.0,0.00077801]
[1742674554019,0.78861297,84239.0,84238.0,0.00017801]
[1742674554820,0.78861297,84239.0,84238.0,0.03117801]
[1742674557627,0.78861297,84239.0,84238.0,0.03181801]
[1742674557816,0.78861297,84239.0,84238.0,0.03117801]
[1742674558612,0.78861297,84239.0,84238.0,0.03177801]
[1742674558924,0.78861297,84239.0,84238.0,0.03117801]
[1742674561715,0.1187326,84238.0,84237.0,0.03168]
[1742674561914,0.1194126,84238.0,84237.0,0.03168]
[1742674562117,0.20994226,84238.0,84237.0,0.03168]
[1742674562315,0.1187425,84231.0,84230.0,0.0325]
[1742674562518,0.5943825,84231.0,84230.0,0.0331]
[1742674562712,0.5943825,84231.0,84230.0,0.0325]
[1742674563024,0.71309447,84231.0,84230.0,0.0325]
[1742674563416,0.0593719,84230.0,84228.0,8e-05]
[1742674563721,0.1187453,84229.0,84228.0,8e-05]
[1742674563920,0.1194253,84229.0,84228.0,0.00068]
[1742674564125,0.30034714,84229.0,84228.0,8e-05]
[1742674564614,0.30034714,84229.0,84228.0,0.00068]
[1742674565324,0.30034714,84229.0,84228.0,8e-05]
[1742674565525,0.30034714,84229.0,84228.0,0.03256]
[1742674565914,0.30034714,84229.0,84228.0,0.03188]
[1742674570026,0.30034714,84229.0,84228.0,0.03248]
[1742674570229,0.30034714,84229.0,84228.0,0.03188]
[1742674571743,0.30034714,84229.0,84228.0,0.03248]
[1742674571930,0.30034714,84229.0,84228.0,0.03188]
[1742674573136,0.30034714,84229.0,84228.0,0.0318]
[1742674573830,0.30034714,84229.0,84227.0,1e-08]
[1742674573831,0.1187467,84228.0,84227.0,1e-08]
[1742674574032,0.1194267,84228.0,84227.0,1e-08]
[1742674574330,0.1827267,84228.0,84227.0,1e-08]
[1742674574535,0.30145276,84228.0,84227.0,1e-08]
[1742674577129,0.0593754,84226.0,84222.0,0.00017801]
[1742674577434,0.1187707,84211.0,84210.0,0.1505715]